[Event "*** Titled Tuesday Blitz"]
[Site "Chess.com"]
[Date "2019.11.05"]
[Round "8"]
[White "cherryandmint"]
[Black "sergeikim"]
[Result "1-0"]
[WhiteElo "2816"]
[BlackElo "2542"]
[TimeControl "180+2"]
[EndTime "14:54:22 PST"]
[Termination "cherryandmint won by resignation"]

1. e4 {[%clk 0:02:59.8]} 1... e5 {[%clk 0:03:00.4]} 2. Nf3 {[%clk 0:03:00.4]}
2... Nc6 {[%clk 0:03:01.1]} 3. Bc4 {[%clk 0:03:01.9]} 3... Bc5 {[%clk 0:03:01]}
4. O-O {[%clk 0:03:02]} 4... Nf6 {[%clk 0:03:01]} 5. d3 {[%clk 0:03:03.5]} 5...
d6 {[%clk 0:03:01.3]} 6. c3 {[%clk 0:03:04]} 6... a6 {[%clk 0:03:02.4]} 7. Bb3
{[%clk 0:03:04.1]} 7... Ba7 {[%clk 0:03:03.2]} 8. Re1 {[%clk 0:03:04.8]} 8...
O-O {[%clk 0:03:03.8]} 9. h3 {[%clk 0:03:05.9]} 9... Nh5 {[%clk 0:03:03.7]} 10.
Nbd2 {[%clk 0:03:06]} 10... Qf6 {[%clk 0:03:03.5]} 11. Nf1 {[%clk 0:03:05.8]}
11... Nf4 {[%clk 0:03:04]} 12. Be3 {[%clk 0:03:02.2]} 12... Be6 {[%clk
0:03:04.3]} 13. Bc2 {[%clk 0:03:02.3]} 13... Ne7 {[%clk 0:03:00]} 14. d4 {[%clk
0:03:01]} 14... Neg6 {[%clk 0:03:00.4]} 15. Ng3 {[%clk 0:03:01.6]} 15... h5
{[%clk 0:02:52]} 16. Nf5 {[%clk 0:03:01.2]} 16... exd4 {[%clk 0:02:37.2]} 17.
N3xd4 {[%clk 0:02:57.1]} 17... d5 {[%clk 0:02:25.9]} 18. Qf3 {[%clk 0:02:28.3]}
18... dxe4 {[%clk 0:02:16.5]} 19. Bxe4 {[%clk 0:02:28.7]} 19... Bxf5 {[%clk
0:02:05.4]} 20. Nxf5 {[%clk 0:02:26.4]} 20... Bxe3 {[%clk 0:02:00.3]} 21. fxe3
{[%clk 0:02:20.7]} 21... Ne6 {[%clk 0:01:58.5]} 22. Qxh5 {[%clk 0:02:19.1]}
22... Rfd8 {[%clk 0:01:42.4]} 23. Rf1 {[%clk 0:02:18.1]} 23... Qg5 {[%clk
0:01:40.2]} 24. Qxg5 {[%clk 0:02:02]} 24... Nxg5 {[%clk 0:01:40.3]} 25. Bxb7
{[%clk 0:02:02.9]} 25... Rab8 {[%clk 0:01:40.5]} 26. Bxa6 {[%clk 0:02:03.6]}
26... Rxb2 {[%clk 0:01:40.3]} 27. Rf2 {[%clk 0:01:57.3]} 27... Rdd2 {[%clk
0:01:22.2]} 28. Rxd2 {[%clk 0:01:55.9]} 28... Rxd2 {[%clk 0:01:22.6]} 29. a4
{[%clk 0:01:55.7]} 29... Ne4 {[%clk 0:01:17.5]} 30. a5 {[%clk 0:01:52.3]} 30...
Ne5 {[%clk 0:01:07.6]} 31. Bb7 {[%clk 0:01:44.2]} 31... Nxc3 {[%clk 0:01:00.1]}
32. a6 {[%clk 0:01:45.3]} 32... Nb5 {[%clk 0:00:58.3]} 33. a7 {[%clk 0:01:36.4]}
33... Nxa7 {[%clk 0:00:59.8]} 34. Rxa7 {[%clk 0:01:38.3]} 34... g6 {[%clk
0:01:00.4]} 35. Nd4 {[%clk 0:01:38.8]} 35... c5 {[%clk 0:00:56.2]} 36. Nf3
{[%clk 0:01:39.7]} 36... Rd1+ {[%clk 0:00:55.6]} 37. Kh2 {[%clk 0:01:40.5]}
37... Nc4 {[%clk 0:00:55.1]} 38. e4 {[%clk 0:01:33.2]} 38... Ne3 {[%clk
0:00:55.1]} 39. Kg3 {[%clk 0:01:30.9]} 39... c4 {[%clk 0:00:48.9]} 40. Bd5
{[%clk 0:01:31.4]} 40... Nxd5 {[%clk 0:00:49.3]} 41. exd5 {[%clk 0:01:33.3]}
41... Rxd5 {[%clk 0:00:49.8]} 42. Rc7 {[%clk 0:01:34.7]} 42... Kg7 {[%clk
0:00:47.8]} 43. Rxc4 {[%clk 0:01:35.3]} 43... f6 {[%clk 0:00:45.2]} 44. Rc7+
{[%clk 0:01:36]} 44... Kh6 {[%clk 0:00:46]} 45. Rf7 {[%clk 0:01:37]} 45... f5
{[%clk 0:00:45.8]} 46. h4 {[%clk 0:01:34.4]} 46... Rd3 {[%clk 0:00:42.9]} 47.
Kf4 {[%clk 0:01:33.5]} 47... Rb3 {[%clk 0:00:43.1]} 48. Ng5 {[%clk 0:01:27.6]}
48... Rb4+ {[%clk 0:00:43.5]} 49. Kg3 {[%clk 0:01:28]} 49... Rb3+ {[%clk
0:00:41.4]} 50. Nf3 {[%clk 0:01:21.9]} 50... Ra3 {[%clk 0:00:40.4]} 51. Kh3
{[%clk 0:01:21.2]} 51... Rb3 {[%clk 0:00:37.5]} 52. Rc7 {[%clk 0:01:21.6]} 52...
Ra3 {[%clk 0:00:36.5]} 53. Kh2 {[%clk 0:01:21.6]} 53... Ra4 {[%clk 0:00:31.1]}
54. g3 {[%clk 0:01:21.7]} 1-0

[Event "*** Titled Tuesday Blitz"]
[Site "Chess.com"]
[Date "2019.11.05"]
[Round "8"]
[White "Alliswell998"]
[Black "temus_galaktionov"]
[Result "0-1"]
[WhiteElo "2524"]
[BlackElo "2689"]
[TimeControl "180+2"]
[EndTime "14:54:22 PST"]
[Termination "temus_galaktionov won by checkmate"]

1. e4 {[%clk 0:03:01.9]} 1... c6 {[%clk 0:03:01.2]} 2. d4 {[%clk 0:03:00.2]}
2... g6 {[%clk 0:03:02.4]} 3. Nc3 {[%clk 0:03:00.7]} 3... Bg7 {[%clk 0:03:03.9]}
4. h4 {[%clk 0:03:01.2]} 4... d6 {[%clk 0:03:05.2]} 5. h5 {[%clk 0:03:02.5]}
5... Qb6 {[%clk 0:03:06.7]} 6. Nf3 {[%clk 0:02:57.5]} 6... Bg4 {[%clk
0:03:06.8]} 7. hxg6 {[%clk 0:02:55.6]} 7... hxg6 {[%clk 0:03:06.9]} 8. Rxh8
{[%clk 0:02:57.5]} 8... Bxh8 {[%clk 0:03:08.4]} 9. d5 {[%clk 0:02:42.9]} 9...
Qb4 {[%clk 0:03:05.1]} 10. Qd3 {[%clk 0:02:40.1]} 10... Nd7 {[%clk 0:03:02.5]}
11. a3 {[%clk 0:02:38.4]} 11... Qa5 {[%clk 0:03:03.1]} 12. b4 {[%clk 0:02:38.4]}
12... Qc7 {[%clk 0:03:02.3]} 13. Bb2 {[%clk 0:02:37.6]} 13... Ngf6 {[%clk
0:02:59.7]} 14. Be2 {[%clk 0:02:36.1]} 14... Rc8 {[%clk 0:02:59.9]} 15. O-O-O
{[%clk 0:02:33.8]} 15... Bxf3 {[%clk 0:02:56.8]} 16. gxf3 {[%clk 0:02:31.2]}
16... cxd5 {[%clk 0:02:54.6]} 17. Nxd5 {[%clk 0:02:27.9]} 17... Nxd5 {[%clk
0:02:53.3]} 18. Bxh8 {[%clk 0:02:27.3]} 18... Nf4 {[%clk 0:02:51.9]} 19. Qd2
{[%clk 0:02:27.7]} 19... Nxe2+ {[%clk 0:02:43.1]} 20. Qxe2 {[%clk 0:02:28.9]}
20... f6 {[%clk 0:02:44.7]} 21. Rh1 {[%clk 0:02:26.3]} 21... Qc3 {[%clk
0:02:40.6]} 22. Kb1 {[%clk 0:02:01.5]} 22... Qxa3 {[%clk 0:02:22.4]} 23. Bxf6
{[%clk 0:01:53.3]} 23... exf6 {[%clk 0:01:12.1]} 24. Rh8+ {[%clk 0:01:50.8]}
24... Nf8 {[%clk 0:01:12]} 25. Qb5+ {[%clk 0:01:48.9]} 25... Rc6 {[%clk
0:01:08.4]} 26. Qxb7 {[%clk 0:01:47.1]} 26... Qc3 {[%clk 0:01:07.6]} 27. Qb8+
{[%clk 0:01:05.5]} 27... Kd7 {[%clk 0:00:56.4]} 28. Qxa7+ {[%clk 0:01:02.4]}
28... Rc7 {[%clk 0:00:54.1]} 29. Qa4+ {[%clk 0:01:03]} 29... Ke7 {[%clk
0:00:52.6]} 30. Rg8 {[%clk 0:00:44.1]} 30... Kf7 {[%clk 0:00:50.8]} 31. Qa2+
{[%clk 0:00:44.5]} 31... Rc4 {[%clk 0:00:46.6]} 32. Rh8 {[%clk 0:00:35.6]} 32...
Kg7 {[%clk 0:00:45.3]} 33. Rh1 {[%clk 0:00:25]} 33... Rxb4+ {[%clk 0:00:37]} 34.
Kc1 {[%clk 0:00:26.5]} 34... Rb7 {[%clk 0:00:36.4]} 35. Rd1 {[%clk 0:00:17.8]}
35... Nd7 {[%clk 0:00:33.8]} 36. Rxd6 {[%clk 0:00:17.3]} 36... Nc5 {[%clk
0:00:31.8]} 37. Rd5 {[%clk 0:00:11.9]} 37... Nb3+ {[%clk 0:00:30.2]} 38. Kd1
{[%clk 0:00:12.4]} 38... Qxf3+ {[%clk 0:00:29.1]} 39. Ke1 {[%clk 0:00:13.8]}
39... Qxe4+ {[%clk 0:00:29.6]} 40. Kf1 {[%clk 0:00:15.2]} 40... Qxd5 {[%clk
0:00:30.6]} 41. cxb3 {[%clk 0:00:16.8]} 41... Qxb3 {[%clk 0:00:30.4]} 42. Qa8
{[%clk 0:00:16.8]} 42... Rd7 {[%clk 0:00:28.8]} 43. Kg2 {[%clk 0:00:17.7]} 43...
Qd5+ {[%clk 0:00:29.3]} 44. Kg3 {[%clk 0:00:18.5]} 44... Qxa8 {[%clk 0:00:29.8]}
45. f4 {[%clk 0:00:20.4]} 45... Rd3+ {[%clk 0:00:29.7]} 46. Kh4 {[%clk
0:00:22.3]} 46... Qh1+ {[%clk 0:00:29.3]} 47. Kg4 {[%clk 0:00:23.4]} 47... f5+
{[%clk 0:00:30.1]} 48. Kg5 {[%clk 0:00:24.4]} 48... Rg3# {[%clk 0:00:31.8]} 0-1

[Event "*** Titled Tuesday Blitz"]
[Site "Chess.com"]
[Date "2019.11.05"]
[Round "8"]
[White "Cruel_Yaro"]
[Black "Guenplen"]
[Result "0-1"]
[WhiteElo "2868"]
[BlackElo "2967"]
[TimeControl "180+2"]
[EndTime "14:54:26 PST"]
[Termination "Guenplen won by resignation"]

1. e4 {[%clk 0:03:01.9]} 1... c5 {[%clk 0:02:56.7]} 2. Nf3 {[%clk 0:03:02]} 2...
e6 {[%clk 0:02:57.9]} 3. d4 {[%clk 0:03:01.1]} 3... cxd4 {[%clk 0:02:59.8]} 4.
Nxd4 {[%clk 0:03:02.7]} 4... Nc6 {[%clk 0:03:01.1]} 5. g3 {[%clk 0:02:58.8]}
5... a6 {[%clk 0:02:55.6]} 6. Bg2 {[%clk 0:02:59.5]} 6... Nxd4 {[%clk
0:02:48.1]} 7. Qxd4 {[%clk 0:02:59.2]} 7... b5 {[%clk 0:02:49.5]} 8. O-O {[%clk
0:02:56.4]} 8... Bb7 {[%clk 0:02:50.3]} 9. c4 {[%clk 0:02:44.3]} 9... bxc4
{[%clk 0:02:33.4]} 10. Qxc4 {[%clk 0:02:44.7]} 10... Ne7 {[%clk 0:02:07.1]} 11.
Nc3 {[%clk 0:02:22.9]} 11... Ng6 {[%clk 0:02:06]} 12. Be3 {[%clk 0:02:19.3]}
12... Be7 {[%clk 0:02:02]} 13. f4 {[%clk 0:01:36.5]} 13... O-O {[%clk 0:02:01]}
14. h4 {[%clk 0:01:32.5]} 14... Qc8 {[%clk 0:01:55.1]} 15. Qe2 {[%clk
0:01:24.3]} 15... Bc5 {[%clk 0:01:48.2]} 16. h5 {[%clk 0:01:18.9]} 16... Ne7
{[%clk 0:01:45.7]} 17. h6 {[%clk 0:01:19.9]} 17... gxh6 {[%clk 0:01:11.1]} 18.
Rad1 {[%clk 0:01:19.9]} 18... f5 {[%clk 0:01:04.1]} 19. Kh2 {[%clk 0:01:14.4]}
19... Bxe3 {[%clk 0:01:04.5]} 20. Qxe3 {[%clk 0:01:15.2]} 20... Bc6 {[%clk
0:01:06]} 21. e5 {[%clk 0:00:56]} 21... Rb8 {[%clk 0:01:00.2]} 22. Rf2 {[%clk
0:00:55.7]} 22... Qe8 {[%clk 0:00:40.8]} 23. Bxc6 {[%clk 0:00:47.7]} 23... Nxc6
{[%clk 0:00:40.5]} 24. Rfd2 {[%clk 0:00:44.8]} 24... Rf7 {[%clk 0:00:40.5]} 25.
Na4 {[%clk 0:00:42]} 25... Nb4 {[%clk 0:00:13.3]} 26. Nb6 {[%clk 0:00:39.6]}
26... Rb7 {[%clk 0:00:13]} 27. a3 {[%clk 0:00:35.2]} 27... Nc6 {[%clk
0:00:14.4]} 28. Qc5 {[%clk 0:00:29]} 28... Rg7 {[%clk 0:00:14.6]} 29. b4 {[%clk
0:00:20.6]} 29... Qh5+ {[%clk 0:00:12.1]} 30. Kg2 {[%clk 0:00:21.7]} 30... Qg4
{[%clk 0:00:10.3]} 31. Rd3 {[%clk 0:00:21.3]} 31... Qe2+ {[%clk 0:00:06.6]} 32.
Kh3 {[%clk 0:00:18.4]} 32... Qh5+ {[%clk 0:00:07.4]} 33. Kg2 {[%clk 0:00:19.4]}
33... Qe2+ {[%clk 0:00:09.3]} 34. Kh3 {[%clk 0:00:20.5]} 34... Qg4+ {[%clk
0:00:05.9]} 35. Kg2 {[%clk 0:00:20.2]} 35... Qxf4 {[%clk 0:00:06.3]} 36. Nxd7
{[%clk 0:00:20]} 36... Rbxd7 {[%clk 0:00:07]} 37. Qxc6 {[%clk 0:00:17.6]} 37...
Rde7 {[%clk 0:00:05.7]} 38. Rd8+ {[%clk 0:00:09.1]} 38... Kf7 {[%clk 0:00:06.2]}
39. R8d7 {[%clk 0:00:08.9]} 39... Rxg3+ {[%clk 0:00:05.5]} 0-1

[Event "*** Titled Tuesday Blitz"]
[Site "Chess.com"]
[Date "2019.11.05"]
[Round "8"]
[White "IMAghasiyevKamal"]
[Black "Squirlolz"]
[Result "1-0"]
[WhiteElo "2436"]
[BlackElo "2503"]
[TimeControl "180+2"]
[EndTime "14:54:29 PST"]
[Termination "IMAghasiyevKamal won by resignation"]

1. d4 {[%clk 0:03:01.9]} 1... Nf6 {[%clk 0:03:01]} 2. c4 {[%clk 0:03:01]} 2...
e6 {[%clk 0:03:02.1]} 3. g3 {[%clk 0:03:01.3]} 3... c5 {[%clk 0:03:01.8]} 4. d5
{[%clk 0:03:02.2]} 4... exd5 {[%clk 0:03:02.9]} 5. cxd5 {[%clk 0:03:03.5]} 5...
d6 {[%clk 0:03:04.8]} 6. Bg2 {[%clk 0:03:04.8]} 6... g6 {[%clk 0:03:06.4]} 7.
Nf3 {[%clk 0:03:05.7]} 7... Bg7 {[%clk 0:03:08.1]} 8. O-O {[%clk 0:03:07.1]}
8... O-O {[%clk 0:03:09.7]} 9. Nc3 {[%clk 0:03:05.8]} 9... Nbd7 {[%clk
0:03:11.3]} 10. Bf4 {[%clk 0:02:54.7]} 10... Qe7 {[%clk 0:03:12.3]} 11. Nd2
{[%clk 0:02:30.2]} 11... Nh5 {[%clk 0:02:58.5]} 12. Be3 {[%clk 0:02:30.9]} 12...
Ne5 {[%clk 0:02:58.9]} 13. Nde4 {[%clk 0:02:15.4]} 13... Bd7 {[%clk 0:02:48.1]}
14. Qb3 {[%clk 0:01:55.3]} 14... Rab8 {[%clk 0:02:22.4]} 15. Nxd6 {[%clk
0:01:49.9]} 15... Qxd6 {[%clk 0:02:17.1]} 16. Ne4 {[%clk 0:01:50.9]} 16... Qa6
{[%clk 0:01:39.5]} 17. Nxc5 {[%clk 0:01:49.4]} 17... Qxe2 {[%clk 0:01:39.9]} 18.
Rfe1 {[%clk 0:01:36.2]} 18... Qb5 {[%clk 0:01:39.5]} 19. Nxd7 {[%clk 0:00:36.2]}
19... Qxb3 {[%clk 0:01:26.1]} 20. axb3 {[%clk 0:00:34.8]} 20... Nxd7 {[%clk
0:01:27.2]} 21. Rxa7 {[%clk 0:00:35.4]} 21... Bxb2 {[%clk 0:01:19.5]} 22. d6
{[%clk 0:00:32.3]} 22... Be5 {[%clk 0:00:58.6]} 23. Rd1 {[%clk 0:00:25]} 23...
Nhf6 {[%clk 0:00:46.6]} 24. Bxb7 {[%clk 0:00:22.2]} 24... Rfd8 {[%clk
0:00:39.5]} 25. h3 {[%clk 0:00:12.3]} 25... Nf8 {[%clk 0:00:32.2]} 26. Bc5
{[%clk 0:00:13.2]} 26... Rd7 {[%clk 0:00:28.8]} 27. Bc6 {[%clk 0:00:12.5]} 27...
Rxa7 {[%clk 0:00:27.1]} 28. Bxa7 {[%clk 0:00:13.4]} 28... Rd8 {[%clk 0:00:29]}
29. Bc5 {[%clk 0:00:11.8]} 29... Ne6 {[%clk 0:00:28.9]} 30. b4 {[%clk
0:00:10.4]} 30... Nxc5 {[%clk 0:00:20.6]} 31. bxc5 {[%clk 0:00:11.2]} 31... Nd7
{[%clk 0:00:22.5]} 32. Rd5 {[%clk 0:00:06.4]} 32... f6 {[%clk 0:00:09.6]} 33. f4
{[%clk 0:00:04.8]} 33... Bc3 {[%clk 0:00:07.9]} 34. Bxd7 {[%clk 0:00:05.5]}
34... Bb4 {[%clk 0:00:04.2]} 35. c6 {[%clk 0:00:05.7]} 35... Kf7 {[%clk
0:00:02.8]} 36. c7 {[%clk 0:00:06.8]} 36... Rxd7 {[%clk 0:00:04.3]} 37. c8=Q
{[%clk 0:00:07.8]} 37... Rxd6 {[%clk 0:00:06.2]} 38. Qc7+ {[%clk 0:00:07.8]} 1-0

[Event "*** Titled Tuesday Blitz"]
[Site "Chess.com"]
[Date "2019.11.05"]
[Round "8"]
[White "olksuna"]
[Black "WeAintSurePal"]
[Result "1-0"]
[WhiteElo "2608"]
[BlackElo "2469"]
[TimeControl "180+2"]
[EndTime "14:54:30 PST"]
[Termination "olksuna won by checkmate"]

1. e4 {[%clk 0:03:01.9]} 1... c6 {[%clk 0:02:59.6]} 2. d4 {[%clk 0:02:50.4]}
2... d5 {[%clk 0:02:59.8]} 3. exd5 {[%clk 0:02:52.3]} 3... cxd5 {[%clk
0:02:59.8]} 4. c4 {[%clk 0:02:53.9]} 4... Nf6 {[%clk 0:03:00.6]} 5. Nc3 {[%clk
0:02:54.7]} 5... Nc6 {[%clk 0:03:00.5]} 6. h3 {[%clk 0:02:50.7]} 6... e6 {[%clk
0:02:51]} 7. Nf3 {[%clk 0:02:51.3]} 7... Be7 {[%clk 0:02:48.4]} 8. Bd3 {[%clk
0:02:52.7]} 8... O-O {[%clk 0:02:49.5]} 9. O-O {[%clk 0:02:53]} 9... dxc4 {[%clk
0:02:50]} 10. Bxc4 {[%clk 0:02:54]} 10... a6 {[%clk 0:02:46.8]} 11. Re1 {[%clk
0:02:43.5]} 11... Nb4 {[%clk 0:02:46.5]} 12. a3 {[%clk 0:02:39.9]} 12... b5
{[%clk 0:02:28.8]} 13. Bb3 {[%clk 0:02:28.6]} 13... Nbd5 {[%clk 0:02:28.3]} 14.
Ne5 {[%clk 0:02:29.9]} 14... Bb7 {[%clk 0:02:28.6]} 15. Bg5 {[%clk 0:02:31.2]}
15... Nxc3 {[%clk 0:02:23.5]} 16. bxc3 {[%clk 0:02:31.2]} 16... Nd5 {[%clk
0:02:23.9]} 17. Bd2 {[%clk 0:02:23.5]} 17... Rc8 {[%clk 0:02:23.2]} 18. Qf3
{[%clk 0:02:02.8]} 18... Ba8 {[%clk 0:02:18.1]} 19. Qd3 {[%clk 0:01:58.4]} 19...
Bf6 {[%clk 0:02:11.6]} 20. Ng4 {[%clk 0:01:56.4]} 20... Be7 {[%clk 0:02:11.3]}
21. Bc2 {[%clk 0:01:55.4]} 21... f5 {[%clk 0:02:09.4]} 22. Rxe6 {[%clk
0:01:52.7]} 22... Bg5 {[%clk 0:01:51.4]} 23. Ne5 {[%clk 0:00:59]} 23... Bxd2
{[%clk 0:01:49.3]} 24. Qxd2 {[%clk 0:01:00]} 24... Nxc3 {[%clk 0:01:47]} 25. Bb3
{[%clk 0:00:50.3]} 25... Kh8 {[%clk 0:01:47.4]} 26. Rc1 {[%clk 0:00:37.2]} 26...
Ne4 {[%clk 0:01:26.3]} 27. Rxc8 {[%clk 0:00:37.6]} 27... Qxc8 {[%clk 0:01:28.2]}
28. Qf4 {[%clk 0:00:35.4]} 28... Nc3 {[%clk 0:01:11.4]} 29. Qh4 {[%clk 0:00:21]}
29... Ne2+ {[%clk 0:01:06]} 30. Kh2 {[%clk 0:00:20.6]} 30... Qb8 {[%clk
0:01:03.1]} 31. f4 {[%clk 0:00:16]} 31... Nxd4 {[%clk 0:00:59.4]} 32. Ng6+
{[%clk 0:00:16]} 32... Kg8 {[%clk 0:01:00.6]} 33. Rb6+ {[%clk 0:00:05.3]} 33...
Nxb3 {[%clk 0:01:01]} 34. Rxb8 {[%clk 0:00:06.6]} 34... Rxb8 {[%clk 0:01:01.3]}
35. Ne7+ {[%clk 0:00:08.5]} 35... Kf7 {[%clk 0:01:01.8]} 36. Nxf5 {[%clk
0:00:10]} 36... Re8 {[%clk 0:01:01.8]} 37. Qxh7 {[%clk 0:00:10.6]} 37... Re2
{[%clk 0:00:39.1]} 38. Qxg7+ {[%clk 0:00:11.4]} 38... Ke8 {[%clk 0:00:40]} 39.
Qg8+ {[%clk 0:00:11.7]} 39... Kd7 {[%clk 0:00:38]} 40. Qxa8 {[%clk 0:00:13.1]}
40... Nd2 {[%clk 0:00:38.1]} 41. Qd5+ {[%clk 0:00:13.8]} 41... Kc8 {[%clk
0:00:39.3]} 42. Qc6+ {[%clk 0:00:14.8]} 42... Kb8 {[%clk 0:00:40.2]} 43. Nd6
{[%clk 0:00:15.6]} 43... Nf1+ {[%clk 0:00:39.2]} 44. Kg1 {[%clk 0:00:16.1]}
44... Re1 {[%clk 0:00:39]} 45. Qb7# {[%clk 0:00:15.3]} 1-0

[Event "*** Titled Tuesday Blitz"]
[Site "Chess.com"]
[Date "2019.11.05"]
[Round "8"]
[White "joshdaruca"]
[Black "joppie2"]
[Result "1-0"]
[WhiteElo "2706"]
[BlackElo "2870"]
[TimeControl "180+2"]
[EndTime "14:54:38 PST"]
[Termination "joshdaruca won by resignation"]

1. e4 {[%clk 0:03:00.7]} 1... c5 {[%clk 0:02:27.7]} 2. Nf3 {[%clk 0:03:01.5]}
2... d6 {[%clk 0:02:28.7]} 3. d4 {[%clk 0:03:02.9]} 3... cxd4 {[%clk 0:02:30.6]}
4. Qxd4 {[%clk 0:03:03.7]} 4... Nf6 {[%clk 0:02:30.3]} 5. h3 {[%clk 0:02:58.7]}
5... a6 {[%clk 0:02:31.3]} 6. Nc3 {[%clk 0:02:56.1]} 6... g6 {[%clk 0:02:32.8]}
7. Be2 {[%clk 0:02:49.1]} 7... Bg7 {[%clk 0:02:34.2]} 8. O-O {[%clk 0:02:49.9]}
8... O-O {[%clk 0:02:35.7]} 9. Qe3 {[%clk 0:02:48]} 9... Nbd7 {[%clk 0:02:37.2]}
10. Rd1 {[%clk 0:02:48.4]} 10... Qc7 {[%clk 0:02:37.1]} 11. Bd2 {[%clk
0:02:47.2]} 11... b5 {[%clk 0:02:37.8]} 12. Rac1 {[%clk 0:02:46.6]} 12... Bb7
{[%clk 0:02:39]} 13. a3 {[%clk 0:02:20.8]} 13... Nc5 {[%clk 0:02:33.5]} 14. Ng5
{[%clk 0:02:16.9]} 14... h6 {[%clk 0:02:33]} 15. b4 {[%clk 0:02:16]} 15... hxg5
{[%clk 0:02:27.8]} 16. bxc5 {[%clk 0:02:16.3]} 16... Qxc5 {[%clk 0:02:27.1]} 17.
Qxc5 {[%clk 0:02:16.3]} 17... dxc5 {[%clk 0:02:29]} 18. Bf3 {[%clk 0:02:15.8]}
18... Nh7 {[%clk 0:02:18.8]} 19. Rb1 {[%clk 0:02:15]} 19... Rfd8 {[%clk
0:02:16.5]} 20. Na4 {[%clk 0:02:12.6]} 20... Rac8 {[%clk 0:02:14.7]} 21. c4
{[%clk 0:02:11.6]} 21... bxa4 {[%clk 0:01:55.9]} 22. Rxb7 {[%clk 0:02:10.3]}
22... Rd3 {[%clk 0:01:57.8]} 23. Be3 {[%clk 0:02:02.4]} 23... Rxa3 {[%clk
0:01:52.1]} 24. Rxe7 {[%clk 0:02:03.8]} 24... Rxe3 {[%clk 0:01:51.2]} 25. fxe3
{[%clk 0:02:04]} 25... a3 {[%clk 0:01:53.1]} 26. e5 {[%clk 0:01:59.9]} 26... Kf8
{[%clk 0:01:50]} 27. Ra7 {[%clk 0:02:01.2]} 27... Bxe5 {[%clk 0:01:47.5]} 28.
Rxa6 {[%clk 0:02:02.3]} 28... Bb2 {[%clk 0:01:49]} 29. Ra7 {[%clk 0:02:02.5]}
29... Nf6 {[%clk 0:01:49.3]} 30. Kf2 {[%clk 0:02:01.2]} 30... Re8 {[%clk
0:01:50.9]} 31. Rd6 {[%clk 0:01:53.6]} 31... Kg7 {[%clk 0:01:52.3]} 32. Rc6
{[%clk 0:01:51.7]} 32... Bc1 {[%clk 0:01:45.7]} 33. Rcc7 {[%clk 0:01:45.4]}
33... Bxe3+ {[%clk 0:01:45.7]} 34. Kf1 {[%clk 0:01:44.9]} 34... Rf8 {[%clk
0:01:40.4]} 35. Rxa3 {[%clk 0:01:44.1]} 35... Bd4 {[%clk 0:01:42.3]} 36. Raa7
{[%clk 0:01:42.6]} 36... Nh7 {[%clk 0:01:41.2]} 37. Bd5 {[%clk 0:01:42.9]} 37...
g4 {[%clk 0:01:38.1]} 38. Rxf7+ {[%clk 0:01:42.1]} 38... Rxf7+ {[%clk 0:01:39]}
39. Rxf7+ {[%clk 0:01:43.8]} 39... Kh6 {[%clk 0:01:40.9]} 40. hxg4 {[%clk
0:01:42.6]} 40... Nf6 {[%clk 0:01:42.5]} 41. Bf3 {[%clk 0:01:33.2]} 41... Kg5
{[%clk 0:01:44.4]} 42. Re7 {[%clk 0:01:22.3]} 42... Kf4 {[%clk 0:01:43.6]} 43.
Ke2 {[%clk 0:01:20.9]} 43... g5 {[%clk 0:01:44.5]} 44. Kd3 {[%clk 0:01:18.7]}
44... Kg3 {[%clk 0:01:44.7]} 45. Rg7 {[%clk 0:01:13.2]} 45... Kf4 {[%clk
0:01:45.6]} 46. Rf7 {[%clk 0:01:13.6]} 46... Kg3 {[%clk 0:01:46.2]} 47. Ke2
{[%clk 0:01:10.6]} 47... Kf4 {[%clk 0:01:47.4]} 48. Rf8 {[%clk 0:01:10.6]} 48...
Kg3 {[%clk 0:01:48.7]} 49. Rh8 {[%clk 0:01:09.1]} 49... Kf4 {[%clk 0:01:48.6]}
50. Rh3 {[%clk 0:01:08.1]} 50... Nd7 {[%clk 0:01:31.5]} 51. g3+ {[%clk
0:01:02.6]} 51... Ke5 {[%clk 0:01:32.7]} 52. Kd3 {[%clk 0:01:04.2]} 52... Kf6
{[%clk 0:01:32.9]} 53. Ke4 {[%clk 0:01:05.5]} 53... Kg6 {[%clk 0:01:33.6]} 54.
Kd5 {[%clk 0:01:05.4]} 54... Nf6+ {[%clk 0:01:34.7]} 55. Ke6 {[%clk 0:01:05.9]}
55... Kg7 {[%clk 0:01:33.8]} 56. Kf5 {[%clk 0:01:05.8]} 56... Be3 {[%clk
0:01:33.3]} 57. Rh1 {[%clk 0:01:06.1]} 57... Ne8 {[%clk 0:01:34.4]} 58. Rd1
{[%clk 0:01:05.9]} 58... Bd4 {[%clk 0:01:29.7]} 59. Kxg5 {[%clk 0:01:04.9]}
59... Nd6 {[%clk 0:01:30.9]} 60. Bd5 {[%clk 0:01:03.6]} 60... Be3+ {[%clk
0:01:32]} 61. Kh4 {[%clk 0:01:04]} 61... Kh6 {[%clk 0:01:32.8]} 62. Re1 {[%clk
0:01:03.5]} 62... Bg5+ {[%clk 0:01:33.3]} 63. Kh3 {[%clk 0:01:04.9]} 63... Kg7
{[%clk 0:01:34.8]} 64. Re6 {[%clk 0:01:05.5]} 64... Nf7 {[%clk 0:01:33.5]} 65.
Rc6 {[%clk 0:01:06.8]} 65... Ne5 {[%clk 0:01:34.6]} 66. Rxc5 {[%clk 0:01:06.6]}
66... Nd3 {[%clk 0:01:36.5]} 67. Rc7+ {[%clk 0:01:06.7]} 67... Kf6 {[%clk
0:01:38.4]} 68. Kg2 {[%clk 0:01:07.4]} 68... Ne1+ {[%clk 0:01:37.1]} 69. Kh3
{[%clk 0:01:07.1]} 69... Nd3 {[%clk 0:01:39]} 70. Rf7+ {[%clk 0:01:07.8]} 70...
Kg6 {[%clk 0:01:39.8]} 71. Rf5 {[%clk 0:01:04.5]} 71... Kh6 {[%clk 0:01:39.4]}
72. Be4 {[%clk 0:01:04]} 72... Nb2 {[%clk 0:01:39.2]} 73. c5 {[%clk 0:01:04.7]}
73... Nc4 {[%clk 0:01:41.1]} 74. c6 {[%clk 0:01:03.7]} 74... Nd6 {[%clk
0:01:41.6]} 75. c7 {[%clk 0:01:04.1]} 1-0